fUST/lending_fUST_20251010
["ID","MTS","AMOUNT","RATE_DAILY","PERIOD"]
[390356085,1760029846080,-500.0,0.0001726,2]
[390356087,1760029846089,-139.39240088,0.0001726,2]
[390356101,1760029846252,-960.80439638,0.0001726,2]
[390356105,1760029846287,-155.61320274,0.0001726,2]
[390356107,1760029846297,-500.0,0.0001726,2]
[390356108,1760029846309,-500.0,0.0001726,2]
[390356110,1760029846318,-500.0,0.0001726,2]
[390356112,1760029846327,-500.0,0.0001726,2]
[390356114,1760029846337,-500.0,0.0001726,2]
[390356116,1760029846346,-500.0,0.0001726,2]
[390356118,1760029846355,-1961.54,0.0001726,2]
[390356119,1760029846364,-613.55,0.0001726,2]
[390356121,1760029846374,-500.0,0.0001726,2]
[390356123,1760029846383,-500.0,0.0001726,2]
[390356125,1760029846392,-500.0,0.0001726,2]
[390356127,1760029846402,-510.37,0.0001726,2]
[390356128,1760029846411,-500.0,0.0001726,2]
[390356130,1760029846421,-500.0,0.0001726,2]
[390356132,1760029846431,-589.0,0.0001726,2]
[390356134,1760029846440,-922.2,0.0001726,2]
[390356136,1760029846449,-1094.23,0.0001726,2]
[390356138,1760029846458,-500.0,0.0001726,2]
[390356139,1760029846467,-595.17910186,0.0001726,2]
[390356142,1760029846476,-1080.53,0.0001726,2]
[390356145,1760029846485,-500.0,0.0001726,2]
[390356148,1760029846494,-500.0,0.0001726,2]
[390356152,1760029846503,-533.32,0.0001726,2]
[390356154,1760029846512,-500.0,0.0001726,2]
[390356157,1760029846522,-500.0,0.0001726,2]
[390356160,1760029846531,-198.0,0.0001726,2]
[390356163,1760029846540,-819.38,0.0001726,2]
[390356166,1760029846549,-706.6,0.0001726,2]
[390356168,1760029846558,-228.4876954,0.0001726,2]
[390356172,1760029846569,-557.9800019,0.0001726,2]
[390356185,1760029846712,-9.8623027,0.0001726,2]
[390356187,1760029846723,-198.0,0.0001726,2]
[390356188,1760029846733,-198.90172451,0.0001726,2]
[390356190,1760029846743,-500.0,0.0001726,2]
[390356192,1760029846753,-167.2,0.0001726,2]
[390356194,1760029846763,-894.65,0.0001726,2]
[390356196,1760029846772,-1362.12,0.0001726,2]
[390356198,1760029846782,-2326.23,0.0001726,2]
[390356200,1760029846791,-966.89,0.0001726,2]
[390356201,1760029846800,-500.0,0.0001726,2]
[390356203,1760029846809,-500.0,0.0001726,2]
[390356205,1760029846819,-748.66,0.0001726,2]
[390356207,1760029846828,-500.0,0.0001726,2]
[390356209,1760029846837,-517.39,0.0001726,2]
[390356210,1760029846846,-861.44,0.0001726,2]
[390356212,1760029846855,-500.0,0.0001726,2]
[390356214,1760029846864,-500.0,0.0001726,2]
[390356216,1760029846873,-1703.0,0.0001726,2]
[390356218,1760029846884,-500.0,0.0001726,2]
[390356220,1760029846892,-646.16,0.0001726,2]
[390356221,1760029846902,-810.31,0.0001726,2]
[390356223,1760029846911,-500.0,0.0001726,2]
[390356225,1760029846920,-500.0,0.0001726,2]
[390356227,1760029846929,-500.0,0.0001726,2]
[390356229,1760029846938,-500.0,0.0001726,2]
[390356230,1760029846948,-500.0,0.0001726,2]
[390356232,1760029846958,-545.10434192,0.0001726,2]
[390356234,1760029846969,-726.29,0.0001726,2]
[390356236,1760029846978,-1185.98,0.0001726,2]
[390356238,1760029846987,-2346.65,0.0001726,2]
[390356240,1760029846997,-1009.79,0.0001726,2]
[390356241,1760029847006,-500.0,0.0001726,2]
[390356243,1760029847015,-375.37163087,0.0001726,2]
[390356246,1760029847031,-2390.41836913,0.0001726,2]
[390356248,1760029847040,-500.0,0.0001726,2]
[390356249,1760029847050,-500.0,0.0001726,2]
[390356251,1760029847059,-1042.8,0.0001726,2]
[390356253,1760029847070,-500.0,0.0001726,2]
[390356255,1760029847079,-907.0,0.0001726,2]
[390356257,1760029847089,-965.68,0.0001726,2]
[390356258,1760029847098,-500.0,0.0001726,2]
[390356260,1760029847108,-785.74,0.0001726,2]
[390356262,1760029847118,-593.06912817,0.0001726,2]
[390361818,1760030893318,8423.03,0.00015,2]
[390361819,1760030893340,4915.8519,0.00015,2]
[390361823,1760030951538,500.27,0.00028767,120]
[390361877,1760031032523,-179.81782093,0.00016224,2]
[390361879,1760031032533,-345.0200923,0.00016237,2]
[390361881,1760031032542,-160.0,0.00016319,2]
[390361883,1760031032552,-300.0,0.00016337,2]
[390361884,1760031032562,-1200.0,0.00016337,2]
[390361885,1760031032574,-12943.59539152,0.00016338,2]
[390361886,1760031032583,-500.0,0.00016438,2]
[390361887,1760031032592,-500.0,0.00016438,2]
[390361888,1760031032602,-500.0,0.00016438,2]
[390361889,1760031032612,-500.0,0.00016438,2]
[390361890,1760031032623,-500.0,0.00016438,2]
[390361892,1760031032634,-500.0,0.00016438,2]
[390361894,1760031032645,-500.0,0.00016438,2]
[390361896,1760031032658,-350.08316612,0.00016438,2]
[390361898,1760031032670,-500.0,0.00016438,2]
[390361900,1760031032681,-500.0,0.00016438,2]
[390361901,1760031032692,-500.0,0.00016438,2]
[390361902,1760031032702,-500.0,0.00016438,2]
[390361903,1760031032712,-500.0,0.00016438,2]
[390361904,1760031032723,-500.0,0.00016438,2]
[390361905,1760031032734,-500.0,0.00016438,2]
[390361906,1760031032747,-588.83,0.00016438,2]
[390361907,1760031032758,-500.0,0.00016438,2]
[390361908,1760031032768,-500.0,0.00016438,2]
[390361909,1760031032779,-500.0,0.00016438,2]
[390361910,1760031032789,-500.0,0.00016438,2]
[390361911,1760031032799,-500.0,0.00016438,2]
[390361912,1760031032808,-500.0,0.00016438,2]
[390361913,1760031032818,-873.47,0.00016438,2]
[390361914,1760031032828,-500.0,0.00016438,2]
[390361915,1760031032838,-500.0,0.00016438,2]
[390361916,1760031032847,-231.89291797,0.00016438,2]
[390361917,1760031032856,-623.88,0.00016438,2]
[390361918,1760031033077,-500.0,0.00016438,2]
[390361919,1760031033088,-500.0,0.00016438,2]
[390361920,1760031033098,-500.0,0.00016438,2]
[390361921,1760031033108,-1063.66,0.00016438,2]
[390361922,1760031033118,-500.0,0.00016438,2]
[390361923,1760031033128,-500.0,0.00016438,2]
[390361924,1760031033138,-500.0,0.00016438,2]
[390361925,1760031033148,-500.0,0.00016438,2]
[390361926,1760031033158,-500.0,0.00016438,2]
[390361927,1760031033168,-500.0,0.00016438,2]
[390361928,1760031033177,-500.0,0.00016438,2]
[390361929,1760031033187,-500.0,0.00016438,2]
[390361930,1760031033196,-500.0,0.00016438,2]
[390361931,1760031033206,-500.0,0.00016438,2]
[390361932,1760031033215,-500.0,0.00016438,2]
[390361933,1760031033226,-500.0,0.00016438,2]
[390361934,1760031033235,-500.0,0.00016438,2]
[390361935,1760031033246,-500.0,0.00016438,2]
[390361936,1760031033255,-1419.17,0.00016438,2]
[390361937,1760031033265,-500.0,0.00016438,2]
[390361938,1760031033274,-500.0,0.00016438,2]
[390361939,1760031033283,-500.0,0.00016438,2]
[390361940,1760031033293,-500.0,0.00016438,2]
[390361941,1760031033303,-500.0,0.00016438,2]
[390361942,1760031033312,-500.0,0.00016438,2]
[390361943,1760031033321,-988.32,0.00016438,2]
[390361944,1760031033331,-647.44,0.00016438,2]
[390361945,1760031033341,-534.93,0.00016438,2]
[390361946,1760031033350,-500.0,0.00016438,2]
[390361947,1760031033360,-639.93,0.00016438,2]
[390361948,1760031033368,-500.0,0.00016438,2]
[390361949,1760031033378,-500.0,0.00016438,2]
[390361950,1760031033387,-500.0,0.00016438,2]
[390361951,1760031033396,-500.0,0.00016438,2]
[390361952,1760031033406,-500.0,0.00016438,2]
[390361953,1760031033415,-558.05,0.00016438,2]
[390361954,1760031033424,-3152.38,0.00016438,2]
[390361955,1760031033433,-500.0,0.00016438,2]
[390361956,1760031033443,-3743.85,0.00016438,2]
[390361957,1760031033452,-500.0,0.00016438,2]
[390361958,1760031033461,-500.0,0.00016438,2]
[390361959,1760031033471,-938.85,0.00016438,2]
[390361960,1760031033480,-869.0,0.00016438,2]
[390361961,1760031033489,-749.52,0.00016438,2]
[390361962,1760031033501,-1287.46,0.00016438,2]
[390361963,1760031033510,-500.0,0.00016438,2]
[390361964,1760031033519,-816.06,0.00016438,2]
[390361965,1760031033529,-2278.07,0.00016438,2]
[390361966,1760031033538,-500.0,0.00016438,2]
[390361967,1760031033548,-500.0,0.00016438,2]
[390361968,1760031033557,-500.0,0.00016438,2]
[390361969,1760031033570,-500.0,0.00016438,2]
[390361970,1760031033579,-500.0,0.00016438,2]
[390361971,1760031033589,-2632.54,0.00016438,2]
[390361972,1760031033599,-718.45,0.00016438,2]
[390361973,1760031033607,-500.0,0.00016438,2]
[390361974,1760031033618,-500.0,0.00016438,2]
[390361975,1760031033627,-500.0,0.00016438,2]
[390361976,1760031033636,-609.76,0.00016438,2]
[390361977,1760031033647,-681.17,0.00016438,2]
[390361978,1760031033657,-725.76,0.00016438,2]
[390361979,1760031033666,-500.0,0.00016438,2]
[390361980,1760031033675,-322.25999414,0.00016438,2]
[390361981,1760031033684,-500.0,0.00016438,2]
[390361982,1760031033693,-1854.06,0.00016438,2]
[390361983,1760031033702,-500.0,0.00016438,2]
[390361984,1760031033712,-5776.11,0.00016438,2]
[390361985,1760031033721,-911.86,0.00016438,2]
[390361986,1760031033731,-500.0,0.00016438,2]
[390361987,1760031033740,-455.88297571,0.00016438,2]
[390361988,1760031033751,-500.0,0.00016438,2]
[390361989,1760031033761,-1046.51,0.00016438,2]
[390361990,1760031033771,-1011.98,0.00016438,2]
[390361991,1760031033780,-768.5,0.00016438,2]
[390361992,1760031033789,-500.0,0.00016438,2]
[390361993,1760031033798,-500.0,0.00016438,2]
[390361994,1760031033807,-500.0,0.00016438,2]
[390361995,1760031033817,-549.31,0.00016438,2]
[390361996,1760031033825,-4799.19,0.00016438,2]
[390361997,1760031033833,-500.0,0.00016438,2]
[390361998,1760031033841,-1089.74,0.00016438,2]
[390361999,1760031033850,-1864.8,0.00016438,2]
[390362000,1760031033860,-500.0,0.00016438,2]
[390362001,1760031033869,-500.0,0.00016438,2]
[390362002,1760031033878,-500.0,0.00016438,2]
[390362003,1760031033887,-500.0,0.00016438,2]
[390362004,1760031033897,-500.0,0.00016438,2]
[390362005,1760031033906,-1728.75,0.00016438,2]
[390362006,1760031033915,-1999.71,0.00016438,2]
[390362007,1760031033925,-900.44,0.00016438,2]
[390362008,1760031033935,-682.82,0.00016438,2]
[390362009,1760031033945,-500.0,0.00016438,2]
[390362010,1760031033954,-500.0,0.00016438,2]
[390362011,1760031033964,-541.41,0.00016438,2]
[390362012,1760031033973,-500.0,0.00016438,2]
[390362013,1760031033983,-500.0,0.00016438,2]
[390362014,1760031033992,-500.0,0.00016438,2]
[390362015,1760031034003,-1135.1,0.00016438,2]
[390362016,1760031034012,-548.13,0.00016438,2]
[390362017,1760031034021,-605.24,0.00016438,2]
[390362018,1760031034031,-698.24,0.00016438,2]
[390362019,1760031034041,-500.0,0.00016438,2]
[390362020,1760031034050,-400.80581889,0.00016438,2]
[390362021,1760031034059,-500.0,0.00016438,2]
[390362022,1760031034068,-745.55,0.00016438,2]
[390362023,1760031034078,-717.86,0.00016438,2]
[390362024,1760031034088,-805.74,0.00016438,2]
[390362025,1760031034097,-654.78,0.00016438,2]
[390362026,1760031034108,-500.0,0.00016438,2]
[390362027,1760031034118,-1938.52,0.00016438,2]
[390362028,1760031034127,-538.47,0.00016438,2]
[390362029,1760031034137,-1756.74,0.00016438,2]
[390362030,1760031034147,-3413.87,0.00016438,2]
[390362031,1760031034156,-500.0,0.00016438,2]
[390362032,1760031034166,-1814.77,0.00016438,2]
[390362033,1760031034175,-500.0,0.00016438,2]
[390362034,1760031034186,-500.0,0.00016438,2]
[390362035,1760031034196,-500.0,0.00016438,2]
[390362036,1760031034205,-500.0,0.00016438,2]
[390362037,1760031034215,-675.26,0.00016438,2]
[390362038,1760031034225,-804.73,0.00016438,2]
[390362039,1760031034235,-2304.82,0.00016438,2]
[390362040,1760031034245,-500.0,0.00016438,2]
[390362041,1760031034255,-500.0,0.00016438,2]
[390362042,1760031034264,-633.65,0.00016438,2]
[390362043,1760031034274,-500.0,0.00016438,2]
[390362044,1760031034284,-500.0,0.00016438,2]
[390362045,1760031034293,-500.0,0.00016438,2]
[390362046,1760031034302,-500.0,0.00016438,2]
[390362047,1760031034312,-1955.55,0.00016438,2]
[390362048,1760031034321,-500.0,0.00016438,2]
[390362049,1760031034331,-500.0,0.00016438,2]
[390362050,1760031034341,-841.49,0.00016438,2]
[390362051,1760031034351,-500.0,0.00016438,2]
[390362052,1760031034361,-500.0,0.00016438,2]
[390362053,1760031034371,-500.0,0.00016438,2]
[390362054,1760031034381,-500.0,0.00016438,2]
[390362055,1760031034391,-500.0,0.00016438,2]
[390362056,1760031034401,-786.58,0.00016438,2]
[390362057,1760031034411,-954.65,0.00016438,2]
[390362058,1760031034420,-2036.29,0.00016438,2]
[390362059,1760031034429,-1036.69,0.00016438,2]
[390362060,1760031034439,-410.76557458,0.00016462,2]
[390362061,1760031034448,-166.37053027,0.00016705,2]
[390362062,1760031034457,-1000.0,0.00016711,2]
[390362063,1760031034466,-500.0,0.00016712,2]
[390362064,1760031034475,-500.0,0.00016712,2]
[390362065,1760031034485,-500.0,0.00016712,2]
[390362066,1760031034495,-500.0,0.00016712,2]
[390362067,1760031034504,-500.0,0.00016712,2]
[390362068,1760031034513,-500.0,0.00016712,2]
[390362069,1760031034523,-500.0,0.00016712,2]
[390362070,1760031034533,-500.0,0.00016712,2]
[390362071,1760031034542,-500.0,0.00016712,2]
[390362072,1760031034551,-500.0,0.00016712,2]
[390362073,1760031034561,-500.0,0.00016712,2]
[390362074,1760031034573,-500.0,0.00016712,2]
[390362075,1760031034583,-500.0,0.00016712,2]
[390362076,1760031034593,-500.0,0.00016712,2]
[390362077,1760031034603,-588.83,0.00016712,2]
[390362078,1760031034612,-500.0,0.00016712,2]
[390362079,1760031034623,-500.0,0.00016712,2]
[390362080,1760031034632,-500.0,0.00016712,2]
[390362081,1760031034642,-500.0,0.00016712,2]
[390362082,1760031034653,-500.0,0.00016712,2]
[390362083,1760031034662,-500.0,0.00016712,2]
[390362084,1760031034672,-873.47,0.00016712,2]
[390362085,1760031034681,-500.0,0.00016712,2]
[390362086,1760031034690,-500.0,0.00016712,2]
[390362087,1760031034699,-623.88,0.00016712,2]
[390362088,1760031034709,-500.0,0.00016712,2]
[390362089,1760031034719,-500.0,0.00016712,2]
[390362090,1760031034728,-500.0,0.00016712,2]
[390362091,1760031034737,-1063.66,0.00016712,2]
[390362092,1760031034748,-500.0,0.00016712,2]
[390362093,1760031034757,-500.0,0.00016712,2]
[390362094,1760031034767,-500.0,0.00016712,2]
[390362095,1760031034776,-500.0,0.00016712,2]
[390362096,1760031034785,-500.0,0.00016712,2]
[390362097,1760031034794,-500.0,0.00016712,2]
[390362098,1760031034803,-500.0,0.00016712,2]
[390362099,1760031034812,-500.0,0.00016712,2]
[390362100,1760031034821,-500.0,0.00016712,2]
[390362101,1760031034831,-500.0,0.00016712,2]
[390362102,1760031034840,-500.0,0.00016712,2]
[390362103,1760031034849,-500.0,0.00016712,2]
[390362104,1760031034858,-500.0,0.00016712,2]
[390362105,1760031034867,-500.0,0.00016712,2]
[390362106,1760031034877,-1419.17,0.00016712,2]
[390362107,1760031034886,-500.0,0.00016712,2]
[390362108,1760031034896,-500.0,0.00016712,2]
[390362109,1760031034906,-500.0,0.00016712,2]
[390362110,1760031034916,-500.0,0.00016712,2]
[390362111,1760031034925,-500.0,0.00016712,2]
[390362112,1760031034934,-644.54,0.00016712,2]
[390362113,1760031034946,-988.32,0.00016712,2]
[390362114,1760031034955,-647.44,0.00016712,2]
[390362115,1760031034965,-534.93,0.00016712,2]
[390362116,1760031034974,-500.0,0.00016712,2]
[390362117,1760031034983,-639.93,0.00016712,2]
[390362118,1760031034992,-500.0,0.00016712,2]
[390362119,1760031035003,-500.0,0.00016712,2]
[390362120,1760031035012,-500.0,0.00016712,2]
[390362121,1760031035020,-500.0,0.00016712,2]
[390362122,1760031035031,-500.0,0.00016712,2]
[390362123,1760031035042,-558.05,0.00016712,2]
[390362124,1760031035053,-3152.38,0.00016712,2]
[390362125,1760031035062,-500.0,0.00016712,2]
[390362126,1760031035071,-3743.85,0.00016712,2]
[390362127,1760031035080,-500.0,0.00016712,2]
[390362128,1760031035089,-500.0,0.00016712,2]
[390362129,1760031035098,-938.85,0.00016712,2]
[390362130,1760031035107,-869.0,0.00016712,2]
[390362131,1760031035116,-749.52,0.00016712,2]
[390362132,1760031035125,-1287.46,0.00016712,2]
[390362133,1760031035135,-500.0,0.00016712,2]
[390362134,1760031035144,-816.06,0.00016712,2]
[390362135,1760031035154,-2278.07,0.00016712,2]
[390362136,1760031035164,-500.0,0.00016712,2]
[390362137,1760031035173,-500.0,0.00016712,2]
[390362138,1760031035182,-500.0,0.00016712,2]
[390362139,1760031035191,-500.0,0.00016712,2]
[390362140,1760031035200,-2632.54,0.00016712,2]
[390362141,1760031035209,-500.0,0.00016712,2]
[390362142,1760031035219,-718.45,0.00016712,2]
[390362143,1760031035229,-500.0,0.00016712,2]
[390362144,1760031035238,-500.0,0.00016712,2]
[390362145,1760031035249,-500.0,0.00016712,2]
[390362146,1760031035258,-681.17,0.00016712,2]
[390362147,1760031035267,-725.76,0.00016712,2]
[390362148,1760031035278,-500.0,0.00016712,2]
[390362149,1760031035288,-500.0,0.00016712,2]
[390362150,1760031035298,-1854.06,0.00016712,2]
[390362151,1760031035308,-500.0,0.00016712,2]
[390362152,1760031035317,-5776.11,0.00016712,2]
[390362153,1760031035326,-911.86,0.00016712,2]
[390362154,1760031035335,-500.0,0.00016712,2]
[390362155,1760031035344,-138.86267907,0.00016712,2]
[390362333,1760031040707,-500.0,0.00016438,2]
[390362336,1760031040717,-500.0,0.00016438,2]
[390362338,1760031040727,-41.66666667,0.00016438,2]
[390362718,1760031044296,-458.33333333,0.00016438,2]
[390362720,1760031044305,-500.0,0.00016438,2]
[390362722,1760031044314,-713.98666557,0.00016438,2]
[390362751,1760031044520,-86.69333443,0.00016438,2]
[390362753,1760031044530,-221.50161931,0.00016438,2]
[390365584,1760031073591,5000.0,0.00017,10]
[390369309,1760031135897,664.0,0.0002876,120]
[390369332,1760031268507,3165.12,0.00024,30]
[390369406,1760031547594,1114.031925,0.00013699,2]
[390369419,1760031808272,462.228,0.00015571,2]
[390369444,1760031831596,1713.21353939,0.00015571,2]
[390369446,1760031968071,287.735264,0.00015322,2]
[390369449,1760032048097,5000.0,0.00015571,2]
[390369450,1760032056089,1422.80127161,0.00015571,2]
[390369451,1760032060872,-720.05679079,0.00015571,2]
[390369452,1760032071798,5000.0,0.00015571,2]
[390369453,1760032094292,84.1581,0.00015571,2]
[390369454,1760032094314,4915.8419,0.00015571,2]
[390369455,1760032095835,-2857.1419376,0.00015571,2]
[390369456,1760032102052,4285.7261248,0.00015571,2]
[390369457,1760032156458,666.0,0.00015338,2]
[390369471,1760032232754,-714.2738752,0.00015571,2]
[390369473,1760032232764,-715.322204,0.00015691,2]
[390369474,1760032232776,-371.67092852,0.00015691,2]
[390369477,1760032232786,-267.69508815,0.0001599,2]
[390369479,1760032232797,-960.29134509,0.00016269,2]
[390369481,1760032232807,-427.4215678,0.00016291,2]
[390369483,1760032232818,-244.0,0.00016326,2]
[390369484,1760032232829,-300.0,0.00016326,2]
[390369487,1760032232839,-300.0,0.00016326,2]
[390369489,1760032232849,-300.0,0.00016326,2]
[390369491,1760032232859,-222.9505583,0.00016326,2]
[390369494,1760032232871,-462.228,0.00016326,2]
[390369498,1760032232889,-514.8214417,0.00016326,2]
[390369501,1760032232907,-1201.68895699,0.00016326,2]
[390369503,1760032232919,-7913.87583927,0.00016326,2]
[390369505,1760032232929,-188.5,0.00016328,3]
[390369507,1760032232939,-5132.81150159,0.00016328,2]
[390369956,1760032238564,-6672.57625832,0.00016328,2]
[390369958,1760032238576,-500.0,0.00016337,2]
[390369960,1760032238586,-343.11761879,0.00016337,2]
[390369962,1760032238596,-500.0,0.00016337,2]
[390369964,1760032238606,-500.0,0.00016337,2]
[390369966,1760032238616,-465.70612297,0.00016337,2]
[390369991,1760032238858,-34.29387703,0.00016337,2]
[390369993,1760032238868,-218.50952015,0.00016337,2]
[390370198,1760032240676,-320.70690344,0.00016337,2]
[390370200,1760032240686,-322.53435056,0.00016338,2]
[390370202,1760032240696,-6149.65107976,0.00016338,2]
[390370206,1760032240732,-398.0429713,0.00016338,2]
[390370208,1760032240745,-622.21569652,0.00016338,2]
[390370760,1760032246628,-359555.44780262,0.00016338,2]
[390370762,1760032246639,-500.0,0.00016338,2]
[390370764,1760032246649,-3297.868687,0.00016338,2]
[390370766,1760032246659,-500.0,0.00016438,2]
[390370768,1760032246670,-500.0,0.00016438,2]
[390370771,1760032246680,-590.81567887,0.00016438,2]
[390370773,1760032246690,-500.0,0.00016438,2]
[390370775,1760032246700,-500.0,0.00016438,2]
[390370777,1760032246711,-500.0,0.00016438,2]
[390370779,1760032246721,-500.0,0.00016438,2]
[390370781,1760032246731,-500.0,0.00016438,2]
[390370783,1760032246740,-500.0,0.00016438,2]
[390370785,1760032246750,-500.0,0.00016438,2]
[390370787,1760032246759,-150.96777061,0.00016438,2]
[390370789,1760032246769,-500.0,0.00016438,2]
[390370791,1760032246779,-993.5,0.00016438,2]
[390370793,1760032246792,-500.0,0.00016438,2]
[390370795,1760032246802,-500.0,0.00016438,2]
[390370797,1760032246811,-500.0,0.00016438,2]
[390370799,1760032246821,-700.59,0.00016438,2]
[390370801,1760032246832,-500.0,0.00016438,2]
[390370803,1760032246841,-500.0,0.00016438,2]
[390370805,1760032246851,-500.0,0.00016438,2]
[390370807,1760032246860,-500.0,0.00016438,2]
[390370810,1760032246871,-500.0,0.00016438,2]
[390370812,1760032246880,-500.0,0.00016438,2]
[390370814,1760032246890,-500.0,0.00016438,2]
[390370816,1760032246903,-500.0,0.00016438,2]
[390370819,1760032246915,-975.02,0.00016438,2]
[390370823,1760032246926,-500.0,0.00016438,2]
[390370825,1760032246936,-500.0,0.00016438,2]
[390370828,1760032246947,-500.0,0.00016438,2]
[390370831,1760032246957,-571.89,0.00016438,2]
[390370833,1760032246967,-164.95044883,0.00016438,2]
[390370836,1760032246978,-275.7611245,0.00016438,2]
[390370838,1760032246988,-500.0,0.00016438,2]
[390370842,1760032246998,-500.0,0.00016438,2]
[390370844,1760032247007,-500.0,0.00016438,2]
[390370846,1760032247017,-500.0,0.00016438,2]
[390370848,1760032247027,-500.0,0.00016438,2]
[390370850,1760032247037,-525.29,0.00016438,2]
[390370852,1760032247046,-500.0,0.00016438,2]
[390370854,1760032247056,-500.0,0.00016438,2]
[390370856,1760032247065,-500.0,0.00016438,2]
[390370858,1760032247075,-569.77,0.00016438,2]
[390370860,1760032247085,-1300.9,0.00016438,2]
[390370863,1760032247095,-500.0,0.00016438,2]
[390370865,1760032247107,-500.0,0.00016438,2]
[390370866,1760032247117,-905.96,0.00016438,2]
[390370868,1760032247126,-500.0,0.00016438,2]
[390370870,1760032247136,-500.0,0.00016438,2]
[390370873,1760032247145,-500.0,0.00016438,2]
[390370875,1760032247155,-500.0,0.00016438,2]
[390370877,1760032247165,-500.0,0.00016438,2]
[390370879,1760032247175,-500.0,0.00016438,2]
[390370881,1760032247184,-500.0,0.00016438,2]
[390370883,1760032247194,-500.0,0.00016438,2]
[390370885,1760032247204,-500.0,0.00016438,2]
[390370887,1760032247214,-551.69,0.00016438,2]
[390370889,1760032247223,-500.0,0.00016438,2]
[390370891,1760032247233,-500.0,0.00016438,2]
[390370893,1760032247243,-200.58980883,0.00016438,2]
[390370895,1760032247252,-573.3,0.00016438,2]
[390370897,1760032247262,-500.0,0.00016438,2]
[390370899,1760032247271,-500.0,0.00016438,2]
[390370901,1760032247281,-500.0,0.00016438,2]
[390370903,1760032247289,-806.43,0.00016438,2]
[390370905,1760032247298,-500.0,0.00016438,2]
[390370907,1760032247308,-500.0,0.00016438,2]
[390370909,1760032247318,-603.67,0.00016438,2]
[390370911,1760032247327,-500.0,0.00016438,2]
[390370913,1760032247339,-500.0,0.00016438,2]
[390370915,1760032247348,-500.0,0.00016438,2]
[390370917,1760032247358,-500.0,0.00016438,2]
[390370918,1760032247368,-500.0,0.00016438,2]
[390370921,1760032247378,-500.0,0.00016438,2]
[390370922,1760032247387,-1180.17,0.00016438,2]
[390370924,1760032247397,-500.0,0.00016438,2]
[390370926,1760032247407,-500.0,0.00016438,2]
[390370928,1760032247417,-860.61,0.00016438,2]
[390370931,1760032247427,-500.0,0.00016438,2]
[390370933,1760032247438,-500.0,0.00016438,2]
[390370935,1760032247448,-500.0,0.00016438,2]
[390370936,1760032247458,-726.41,0.00016438,2]
[390370938,1760032247468,-658.58,0.00016438,2]
[390370941,1760032247479,-500.0,0.00016438,2]
[390370942,1760032247489,-500.0,0.00016438,2]
[390370944,1760032247499,-500.0,0.00016438,2]
[390370947,1760032247510,-500.0,0.00016438,2]
[390370949,1760032247521,-834.59,0.00016438,2]
[390370951,1760032247531,-695.63,0.00016438,2]
[390370953,1760032247541,-500.0,0.00016438,2]
[390370955,1760032247551,-500.0,0.00016438,2]
[390370957,1760032247561,-624.4,0.00016438,2]
[390370959,1760032247571,-2096.59,0.00016438,2]